Cogmind - Beta 15 @@@ ROGUE MODE // 2025.07.06 @ 22:38:13 Player: Skysub Result: Destroyed by KI-11R(R) with Subdweller Shrapnel Launcher Performance ------------- Evolutions (0) 0 Regions Visited (2) 400 Robots Destroyed (38) 190 Value Destroyed (773) 773 Prototype IDs (0) 0 Alien Tech Used (0) 0 Bonus (0) 0 TOTAL SCORE: 1363 Bonus ------- None Cogmind --------- Core Integrity 0/250 Matter 101/300 Energy 98/100 System Corruption 0% Temperature Cool (1) Movement Treading (240) Ox1 Location -10/Subcaves Parts ------- > --- POWER (1) -------- (None) > --- PROPULSION (2) --- Light Treads > --- UTILITY (2) ------ Large Storage Unit Structural Scanner > --- WEAPON (2) ------- (None) > --- INVENTORY (15) --- Light Ion Engine Subdweller Power Source Light Treads Light Treads Spiked Treads Wheel Subdweller Monowheel Small Storage Unit Hacking Suite Subdweller Laser Light Assault Rifle Peak State ------------ > --- POWER ------------ Ion Engine > --- PROPULSION ------- Light Treads Light Treads > --- UTILITY ---------- Large Storage Unit Structural Scanner > --- WEAPON ----------- Small Laser Light Assault Rifle > --- INVENTORY -------- Light Ion Engine Light Treads Light Treads Wheel Small Storage Unit Hacking Suite Grenade Launcher Mining Laser [Rating: 8] Favorites ----------- Power Ion Engine Engine Ion Engine Propulsion Light Treads Treads Light Treads Utility Structural Scanner Device Structural Scanner Storage Large Storage Unit Weapon Light Assault Rifle Energy Gun Small Laser Ballistic Gun Light Assault Rifle Launcher Grenade Launcher Special Weapon Mining Laser Build | -11 -10 -10 ------- Run | Yrd Mat Sub Slots Evolved . | . . . Power . | . . . Propulsion . | . . . Utility . | . . . Weapon . | . . . Parts Attached 13 | 8 5 . Power 2 | 2 . . Engine 2 | 2 . . Core . | . . . Reactor . | . . . Propulsion 2 | 2 . . Treads 2 | 2 . . Leg . | . . . Wheel . | . . . Hover . | . . . Flight . | . . . Utility 3 | 1 2 . Device 1 | . 1 . Storage 2 | 1 1 . Processor . | . . . Hackware . | . . . Protection . | . . . Artifact . | . . . Weapon 6 | 3 3 . Energy Gun 1 | 1 . . Energy Cannon . | . . . Ballistic Gun 3 | 2 1 . Ballistic Cannon . | . . . Launcher 1 | . 1 . Special Weapon 1 | . 1 . Impact Weapon . | . . . Slashing Weapon . | . . . Piercing Weapon . | . . . Special Melee Weapon . | . . . Unidentified Prototypes . | . . . Parts Lost 7 | . 2 5 Power 1 | . . 1 Propulsion 1 | . . 1 Utility . | . . . Weapon 5 | . 2 3 Highest Loss Streak 3 | . 1 3 To Critical Strikes . | . . . Average Backups 7 | 2 6 9 Power 1 | . 1 1 Propulsion 2 | . 1 4 Utility 1 | . . 2 Weapon 2 | . 2 1 Tool/Special . | . . . Unused Backups 8 | . . 8 Power 1 | . . 1 Propulsion 5 | . . 5 Utility 1 | . . 1 Weapon 1 | . . 1 Tool/Special . | . . . Average Slot Usage (%) 89 | . 98 77 Engine 9 | . 14 3 Treads 23 | . 28 17 Device 13 | . 13 14 Storage 14 | . 14 14 Energy Gun 5 | . 1 9 Ballistic Gun 11 | . 21 . Launcher 7 | . 2 13 Special Weapon 2 | . 1 3 Peak Build Rating 8 | 6 8 8 Average Rating 6 | 5 7 6 On Entrance 4 | . 6 8 Naked Turns . | . . . Heaviest Build 31 | 13 31 30 Greatest Support 40 | 40 40 40 Greatest Overweight (x) 1 | 1 . 1 Average Overweight (x) . | . . . Largest Inventory Capacity 15 | 8 15 15 Average Capacity 13 | 7 13 15 Most Carried 11 | 4 8 11 Average Carried 7 | 2 6 9 Final Capacity 15 | 8 15 15 Final Carried 11 | 4 8 11 Class Distribution -------------------- 100% | Mutant Dominant Class ---------------- Mutant | -10/Materials Mutant | -10/Subcaves Resources | -11 -10 -10 ----------- Run | Yrd Mat Sub Matter Collected 566 | 217 211 138 Remotely . | . . . Salvage Created 730 | 28 532 170 Parts 80 | 3 52 25 Haulers Intercepted 1 | . 1 . Recyclers Shooed 3 | 1 2 . Parts Field Recycled . | . . . Retrieved Matter . | . . . Parts Self-Destructed 16 | . . 16 Prevented . | . . . Kills | -11 -10 -10 ------- Run | Yrd Mat Sub Combat Hostiles Destroyed 29 | . 17 12 Guns 12 | . 10 2 AOE 17 | . 7 10 Classes Destroyed 9 | 1 7 1 Worker 1 | . 1 . Builder 2 | . 2 . Tunneler 3 | 1 2 . Hauler 1 | . 1 . Recycler 1 | . 1 . Operator 1 | . 1 . Swarmer 13 | . 6 7 Grunt 11 | . 11 . Subdweller 5 | . . 5 Best Kill Streak 11 | 1 11 6 Combat Bots Only 8 | . 8 6 Max Kills in Single Turn 3 | 1 2 3 Gunslinging 1 | . 1 . Exploded 3 | . 1 3 Melee . | . . . Uniques/NPCs Destroyed . | . . . Combat | -11 -10 -10 -------- Run | Yrd Mat Sub Hostile Shots Fired 109 | . 69 40 Missed 35 | . 24 11 Hits 74 | . 45 29 Projectile 74 | . 45 29 AOE 2 | . . 2 Critical Strikes 1 | . 1 . Damage Taken 1033 | . 546 487 Core 268 | . 104 164 Absorbed by Shields . | . . . Core Remaining (%) 100 | 100 . . Volleys Fired 88 | 5 66 17 Largest 2 | 2 2 2 Hottest 100 | 40 100 70 Shots Fired 138 | 10 109 19 Gun 88 | 10 74 4 Cannon . | . . . Launcher 30 | . 15 15 Special 20 | . 20 . Kinetic 80 | 10 70 . Thermal 28 | . 24 4 Explosive 30 | . 15 15 Electromagnetic . | . . . Robot Hit Streak 11 | 4 11 10 Robot Miss Streak 4 | 4 3 2 Penetration Max . | . . . Secondary Targets 3 | . 3 . Max Gunslinging Chain 1 | . 1 . Shots Hit Robots 85 | 5 66 14 Core Hits 62 | 1 48 13 Critical Kills . | . . . Critical Parts Destroyed 1 | . 1 . Critical Strikes 1 | . 1 . Destroy 1 | . 1 . Melee Attacks . | . . . Impact . | . . . Slashing . | . . . Piercing . | . . . Sneak Attacks . | . . . Combat Hostiles . | . . . Follow-up Attacks . | . . . Damage Inflicted 2577 | 61 1509 1007 Guns 600 | 61 506 33 Cannons . | . . . Explosions 1957 | . 983 974 Melee . | . . . Ramming 20 | . 20 . Kinetic 546 | 61 485 . Thermal 54 | . 21 33 Explosive 1957 | . 983 974 Electromagnetic . | . . . Impact . | . . . Slashing . | . . . Piercing . | . . . Highest Corruption . | . . . Average Corruption . | . . . Corruption Purged . | . . . Corruption Blocked . | . . . Overload Shots . | . . . Overflow Damage 49 | . 22 27 Projectiles . | . . . Explosions 49 | . 22 27 Melee . | . . . Knockbacks . | . . . Impact . | . . . Kinetic . | . . . Secondary . | . . . Self-Inflicted Damage 82 | . . 82 Shots 3 | . . 3 Rammed 6 | . 6 . Targets Rammed 6 | . 6 . Kicked . | . . . Crushed . | . . . Highest Temperature 48 | . 48 . Average Temperature 18 | . 18 . Received Heat Transfer 258 | . 198 60 Siege Activations . | . . . Martial Activations . | . . . Shielding Activations . | . . . Robots Disrupted . | . . . Combat Hostiles . | . . . Robots Corrupted . | . . . Combat Hostiles . | . . . Parts Fried . | . . . Impact Corruptions . | . . . Robots Melted . | . . . Combat Hostiles . | . . . Parts Melted . | . . . Heat Transferred 125 | . 50 75 Parts Sabotaged . | . . . Parts Stolen . | . . . Parts Stripped . | . . . Power Chain Reactions . | . . . Alert | -11 -10 -10 ------- Run | Yrd Mat Sub Maximum Alert Level 1 | . 1 . Low Security (%) 35 | 100 28 . Level 1 64 | . 71 . Level 2 . | . . . Level 3 . | . . . Level 4 . | . . . Level 5 . | . . . High Security . | . . . Max Security . | . . . Peak Influence 325 | 5 325 . Initial . | . . . Average 190 | . 211 . Influence Increases 810 | 5 595 210 Destroy 0b10 Robot/C 480 | . 340 140 Destroy 0b10 Robot/NC 45 | 5 40 . Destroy Leader 82 | . 72 10 Successful Hack 27 | . 27 . Select Force Hacks 60 | . 60 . Destroy Structure 56 | . 56 . Lose Combat Pursuer 60 | . . 60 Influence Decreases 810 | 5 433 372 Entered New Map 78 | . . 78 Time Decay 696 | 5 413 278 Lost Part 36 | . 20 16 Squads Dispatched 5 | . 5 . Investigation 3 | . 3 . Extermination . | . . . Reinforcement 2 | . 2 . Assault . | . . . Garrison . | . . . Intercept . | . . . Searches Triggered . | . . . Construction Impeded . | . . . Haulers Reinforced . | . . . Active Scanning Responses . | . . . Cargo Convoy Interrupts . | . . . Stealth | -11 -10 -10 --------- Run | Yrd Mat Sub Distress Signals 2 | . 2 . Communications Jammed . | . . . Distress Signals . | . . . Times Spotted 48 | . 33 15 Peak Tracking Total 8 | . 8 6 Tactical Retreats 1 | . . 1 Traps | -11 -10 -10 ------- Run | Yrd Mat Sub Traps Triggered 4 | . 4 . Indirectly . | . . . Trap Hack Attempts . | . . . Triggered . | . . . Disarmed . | . . . Reprogrammed . | . . . Reused . | . . . Traps Extracted . | . . . Installed . | . . . Triggered . | . . . Machines | -11 -10 -10 ---------- Run | Yrd Mat Sub Machines Disabled . | . . . Max in Single Turn . | . . . Machines Repaired . | . . . Machines Dismantled . | . . . Machines Sabotaged . | . . . Overloaded Fab Kills . | . . . Hacking | -11 -10 -10 --------- Run | Yrd Mat Sub Machines Accessed 6 | . 6 . Terminals 4 | . 4 . Fabricators . | . . . Repair Stations . | . . . Recycling Units 2 | . 2 . Scanalyzers . | . . . Garrison Access . | . . . Total Hacks 18 | . 18 . Successful 13 | . 13 . Failed 5 | . 5 . Catastrophic 1 | . 1 . Database Lockouts . | . . . Manual 15 | . 15 . Terminals 14 | . 14 . Fabricators . | . . . Repair Stations . | . . . Recycling Units 4 | . 4 . Scanalyzers . | . . . Garrison Access . | . . . Terminal Hacks 2 | . 2 . Terminal Index 1 | . 1 . Locate Traps 1 | . 1 . Fabricator Hacks . | . . . Repair Station Hacks . | . . . Recycling Unit Hacks 2 | . 2 . Report Inventory 2 | . 2 . Scanalyzer . | . . . Garrison Access Hacks . | . . . Unauthorized Hacks 8 | . 8 . Terminals 6 | . 6 . Botnet 2 | . 2 . Skim 4 | . 4 . Fabricators . | . . . Repair Stations . | . . . Recycling Units 2 | . 2 . Tunnel 2 | . 2 . Scanalyzers . | . . . Garrison Access . | . . . Data Cores Recovered . | . . . Used . | . . . Hacking Detections 4 | . 4 . Full Trace Events 1 | . 1 . Feedback Events . | . . . Feedback Blocked . | . . . Robot Schematics Acquired . | . . . Robots Built . | . . . Authchips . | . . . Time . | . . . Total Robot Build Rating . | . . . Part Schematics Acquired . | . . . Parts Built . | . . . Authchips . | . . . Time . | . . . Total Part Build Rating . | . . . Parts Repaired . | . . . Time . | . . . Parts Recycled . | . . . Recycled Matter . | . . . Retrieved Matter . | . . . Retrieved Components . | . . . Parts Scanalyzed . | . . . Part Schematics Acquired . | . . . Parts Damaged . | . . . Bothacking | -11 -10 -10 ------------ Run | Yrd Mat Sub Used RIF Installer . | . . . Robots Hacked . | . . . Non-combat . | . . . Combat . | . . . Robot Hacks Applied . | . . . Relay Couplers Released . | . . . Fabnet Peak Effective % . | . . . Robots Rewired . | . . . Allies Hacked . | . . . Hacks Repelled . | . . . Allies | -11 -10 -10 -------- Run | Yrd Mat Sub Total Allies . | . . . Largest Group . | . . . Highest-Rated Group . | . . . Highest-Rated Ally . | . . . Total Orders . | . . . Ally Attacks . | . . . Total Damage . | . . . Kills . | . . . Allies Corrupted . | . . . Allies Melted . | . . . Intel | -11 -10 -10 ------- Run | Yrd Mat Sub Active Infowar (turns) 2033 | . 1085 948 Structural 2033 | . 1085 948 Robot Analysis Total . | . . . Derelict Logs Recovered . | . . . Drone Launches . | . . . Drone Recoveries . | . . . Exploration | -11 -10 -10 ------------- Run | Yrd Mat Sub Turns Passed 2232 | 130 1154 948 Spaces Moved 1055 | 68 562 425 Core 9 | 9 . . Treads 1046 | 59 562 425 Legs . | . . . Wheels . | . . . Hover . | . . . Flight . | . . . Fastest Speed 50 | 50 160 160 Average Speed 180 | 149 160 213 Slowest Speed 240 | 160 160 240 Overloaded Moves . | . . . Propulsion Burnouts . | . . . Robots Hopped . | . . . Potential Cave-ins . | . . . Cave-ins Triggered . | . . . Exploration Rate (%) 44 | 4 87 42 Regions Visited 2 Branch Regions 1 Pre-discovered Areas 2 | . 2 . Known Exits Taken . | . . . Unknown Exits Taken 2 | 1 1 . Scrap Searched . | . . . Spaces Dug . | . . . Terrain Destroyed 131 | . 54 77 Melee . | . . . Projectile . | . . . AOE 131 | . 54 77 Terrain Rammed . | . . . Walls Destroyed . | . . . Machines Disabled . | . . . Actions | -11 -10 -10 --------- Run | Yrd Mat Sub Total 1201 | 83 670 448 Wait 26 | . 26 . Move 1053 | 67 561 425 Hop . | . . . Pick Up 10 | 2 4 4 Fast Attach 8 | 6 2 . Attach 2 | . 1 1 Detach . | . . . Swap 8 | 3 4 1 Drop . | . . . Fire 88 | 5 66 17 Melee . | . . . Ram . | . . . Kick . | . . . Crush 6 | . 6 . Escape Stasis . | . . . Rewire . | . . . Trap . | . . . Miscellaneous . | . . . Route ------- -11/Scrapyard -10/Materials (discovered 4 exits: [*Mat x3] / [*Sub]) -10/Subcaves (discovered 1 exit: [*Mat]) History --------- Turn | Location | Event 17 | -11/Scrapyard | Discovered new exit (range 15) 131 | -11/Scrapyard | Entered Materials 307 | -10/Materials | Build established: Mutant 317 | -10/Materials | Destroyed 8 combat bots 387 | -10/Materials | Discovered new exit (range 12) 685 | -10/Materials | Discovered new exit (range 10) 952 | -10/Materials | Discovered new exit (range 11) 1274 | -10/Materials | Discovered new exit (range 4) 1285 | -10/Materials | Entered Subcaves 1465 | -10/Subcaves | Shifting Twisted Machinery released Flamer 1480 | -10/Subcaves | Shifting Twisted Machinery released Spk. Treads 1518 | -10/Subcaves | Ambushed by Subdweller buried in earth 1528 | -10/Subcaves | Core integrity fell below 50% 1572 | -10/Subcaves | Lost 3 parts (1p1n1w) 1665 | -10/Subcaves | Discovered new exit (range 8) 2229 | -10/Subcaves | Core integrity fell below 20% 2233 | -10/Subcaves | Destroyed by KI-11R(R) with Subdweller Shrapnel Launcher Last Messages --------------- 01820_ Acquired Sub. Monowheel. 01826_ Acquired Sub. Laser. 01829_ Acquired Sub. Power Source. 01837_ Subatomizers dissect the Disposable Heat Sink. 02037_ Destroyed Flight Unit. 02037_ S-10 Pest destroyed. 02043_ Flight Unit fries itself beyond repair. 02044_ Acquired 8 matter. 02045_ Lgt. Ion Engine fries itself beyond repair. 02046_ Acquired 9 matter. 02047_ Lgt. Ion Engine fries itself beyond repair. 02049_ Lgt. Assault Rifle fries itself beyond repair. 02051_ Acquired 2 matter. 02071_ The unstable cave ceiling collapses. 02226_ IW-U3T(R) destroyed. 02228_ Subatomizers dissect the Disposable Heat Sink. 02228_ Grenade Launcher destroyed. 02228_ Sml. Laser destroyed. 02231_ The unstable cave ceiling collapses. 02232_ KI-11R(R) affixes Scrap Shield Fragment to Scrap Shield. Map ----- +----------------------------------------------------+ | ?????????????????????????????????????????????????? | | ?????????????????????????????????????????????????? | | ?????????????????????????????????????????????????? | | ?????????????????????????????????????????????????? | | ?????????????????????????????????????????????????? | | ?????????????????????????????????????????????????? | | ?????????????????????????????????????????????????? | | ?????????????????????????????????????????????????? | | ?????????????????????????????????????????????????? | | ?????????????????????????????????????????????????? | | ?????????????????????????????????????????????????? | | ?????????????????????????????????????????????????? | | ?????????????????????????????????????????????????? | | ?????????????????????????????????????????????????? | | ?????????????????????????????????????????????????? | | ?????????????????????????????????????????????????? | | ?????????????????????????????????????????????????? | | ?????????????????????????????????????????????????? | | ???????????????????????######## ?????????????????? | | ?????????????????????##########"?????????????????? | | ?????????????????????#### ###""""#??????????????? | | ?????????????????????## """"""##??????????????? | | #????????????????????## R """" " #??????????????? | | ##??????????????????#### = " ???????????????????? | | ####???????????????#### &*% ##???????????????????? | | ########???????????###; @& ##???????????????????? | | #######??????????## ;# ;##???????????????????? | | ####?????????## ; ###???????????????????? | | # # ###?????????## ; ###???????????????????? | | ### ##?????????##;; ###????????????????????? | | ### # ?????????## ###????????????????????? | | ##### ####?????????### ###?????????????????????? | | ##########?????????##### ###?????????????????????? | | ##?#####????????????### ###??????????????????????? | | ##???????????????????## ###??????????????????????? | | #????????????????????## ##???????????????????????? | | #????????????????????## ####?????????????????????? | | ?????????????????????## ####?????????????????????? | | ?????????????????????### ##?????????????????????? | | ??? ##??????????????#### ###?????????????????????? | | ?? ###????????????#### ####?????????????????????? | | ##???????????#### ####??????????????????????? | | ??????????#### ###??????####?????????????? | | ???????????### ###?????#####????????????? | | ??????????### ###?????# ###????????????? | | #??????????### ##?????? ##????????????? | | ######??????????## #####?????? ##????????????? | | # ?????????### #####????? ##????????????? | | ??????????????#### #####????? ##????????????? | | ??????????????### ####????? ##????????????? | +----------------------------------------------------+ Best States ------------- Heat Dissipation 25 Energy Generation 10 Energy Capacity 250 Matter Stores 231 Matter Capacity 300 Sight Range 16 Terrain Scan Density 10 Evasion (%) 40 Recoil Reduction 2 Item Schematics ----------------- None Robot Schematics ------------------ None Fabricated ------------ Nothing Repaired ---------- Nothing Alien Tech Used ----------------- None Achievements -------------- None Challenges ------------ None Game ------ Seed DisposableSmartThruster Manual? 0 Play Time 00:12:06 Cumulative 140.5 hours Start 2025.07.06 @ 22:18:43 End 2025.07.06 @ 22:38:13 Sessions 1 Manual Loads 0 Difficulty Rogue Special Mode None Game No. 150 Rogue 150 Adventurer 0 Explorer 0 Win Type - Total 3 Types 1/0/0/1/0/0/0/0/0/1 Lore% 63 Gallery% 59 Achievement% 52 Wizard Run 0 Options --------- Layout 1 ASCII 0 Keyboard 1 Movement Numpad Keybinds 0 Fullscreen 1 Font 32/SmallcapsGlow Map View 77x35 Zoom Use 0% Tactical HUD 1 Map Filters NONE Filters NONE Steam 1 RUN: f70697d2-d40e-482e-9e5e-7e9be1526ebb